[Event "Early-Titled-Tuesday-Blitz-September-05-2023"]
[Site "Chess.com"]
[Date "2023.09.05"]
[Round "7"]
[White "artooon"]
[Black "Chopper1905"]
[Result "1-0"]
[WhiteElo "3052"]
[BlackElo "2881"]
[TimeControl "180+1"]
[EndTime "9:18:33 PDT"]
[Termination "artooon won by resignation"]

1. e4 {[%clk 0:03:00.9]} 1... c5 {[%clk 0:02:57]} 2. Nf3 {[%clk 0:03:01]} 2...
d6 {[%clk 0:02:54]} 3. d4 {[%clk 0:03:01.3]} 3... cxd4 {[%clk 0:02:54.9]} 4.
Nxd4 {[%clk 0:03:02.2]} 4... Nf6 {[%clk 0:02:55.3]} 5. Nc3 {[%clk 0:03:02.8]}
5... a6 {[%clk 0:02:56]} 6. Bg5 {[%clk 0:03:00.6]} 6... e6 {[%clk 0:02:55.1]} 7.
f4 {[%clk 0:03:00.3]} 7... h6 {[%clk 0:02:55.7]} 8. Bh4 {[%clk 0:03:00.3]} 8...
Qb6 {[%clk 0:02:56]} 9. a3 {[%clk 0:03:00.4]} 9... Be7 {[%clk 0:02:56.1]} 10.
Bf2 {[%clk 0:03:00.4]} 10... Qc7 {[%clk 0:02:56.6]} 11. Qf3 {[%clk 0:03:00.8]}
11... b5 {[%clk 0:02:54.7]} 12. O-O-O {[%clk 0:03:00.9]} 12... Bb7 {[%clk
0:02:54.5]} 13. g4 {[%clk 0:03:00.2]} 13... d5 {[%clk 0:02:54.9]} 14. e5 {[%clk
0:02:58]} 14... Ne4 {[%clk 0:02:55]} 15. Be1 {[%clk 0:02:52.7]} 15... Nc6 {[%clk
0:02:52.7]} 16. Nxc6 {[%clk 0:02:41.7]} 16... Bxc6 {[%clk 0:02:41.5]} 17. Ne2
{[%clk 0:02:41.6]} 17... g5 {[%clk 0:01:48.4]} 18. Nd4 {[%clk 0:02:15.7]} 18...
Bb7 {[%clk 0:01:45.4]} 19. h4 {[%clk 0:02:10.8]} 19... gxf4 {[%clk 0:01:33.7]}
20. Qxf4 {[%clk 0:02:11.7]} 20... Rc8 {[%clk 0:01:12.3]} 21. Bd3 {[%clk
0:02:07.8]} 21... f6 {[%clk 0:01:11.1]} 22. Nxe6 {[%clk 0:02:04.7]} 22... Qxe5
{[%clk 0:01:10.7]} 23. Qxe5 {[%clk 0:01:54.5]} 23... fxe5 {[%clk 0:01:10.2]} 24.
Bxe4 {[%clk 0:01:55.2]} 24... dxe4 {[%clk 0:01:10]} 25. Rf1 {[%clk 0:01:48.8]}
25... Rg8 {[%clk 0:01:03.9]} 26. Bb4 {[%clk 0:01:43.8]} 26... e3 {[%clk
0:00:53.8]} 27. Rf5 {[%clk 0:01:11.1]} 27... Be4 {[%clk 0:00:19.8]} 28. Rxe5
{[%clk 0:01:11.5]} 28... Bxc2 {[%clk 0:00:20]} 29. Re1 {[%clk 0:01:03.3]} 29...
Bxb4 {[%clk 0:00:14.4]} 30. Nc5+ {[%clk 0:01:03.4]} 30... Kf7 {[%clk 0:00:13]}
31. axb4 {[%clk 0:01:04]} 31... Bh7 {[%clk 0:00:06.1]} 32. R1xe3 {[%clk
0:01:03]} 32... Rxg4 {[%clk 0:00:06.3]} 33. b3 {[%clk 0:00:49.2]} 33... Rxb4
{[%clk 0:00:05.8]} 34. Kb2 {[%clk 0:00:49.9]} 34... Rxh4 {[%clk 0:00:05.8]} 35.
Ka3 {[%clk 0:00:32.9]} 35... b4+ {[%clk 0:00:05.7]} 36. Ka4 {[%clk 0:00:31.5]}
36... Bg6 {[%clk 0:00:06]} 37. Re7+ {[%clk 0:00:30.7]} 37... Kf6 {[%clk
0:00:04.3]} 38. Nd7+ {[%clk 0:00:29]} 38... Kg5 {[%clk 0:00:03.9]} 39. R7e5+
{[%clk 0:00:25.6]} 39... Kf4 {[%clk 0:00:03.4]} 40. Nf6 {[%clk 0:00:20.5]} 40...
Rh1 {[%clk 0:00:02.2]} 41. Nd5+ {[%clk 0:00:19.6]} 41... Kg4 {[%clk 0:00:02.7]}
42. Nf6+ {[%clk 0:00:20.3]} 42... Kf4 {[%clk 0:00:02.4]} 43. Nd5+ {[%clk
0:00:20.6]} 43... Kg4 {[%clk 0:00:02.8]} 44. Nf6+ {[%clk 0:00:21.2]} 44... Kh4
{[%clk 0:00:02.6]} 45. Kxb4 {[%clk 0:00:19.2]} 45... Rc6 {[%clk 0:00:02]} 46.
Nd5 {[%clk 0:00:18.8]} 46... Rd6 {[%clk 0:00:02.2]} 47. Kc5 {[%clk 0:00:18.4]}
47... Rd8 {[%clk 0:00:02.2]} 48. Ne7 {[%clk 0:00:17.9]} 48... Rc1+ {[%clk
0:00:02.6]} 49. Kb4 {[%clk 0:00:18.4]} 49... Rb8+ {[%clk 0:00:03]} 50. Ka3
{[%clk 0:00:18.4]} 50... Ra1+ {[%clk 0:00:03.5]} 51. Kb2 {[%clk 0:00:18.9]}
51... Rb1+ {[%clk 0:00:04.4]} 52. Ka2 {[%clk 0:00:19.6]} 52... Rg1 {[%clk
0:00:03.9]} 53. Re2 {[%clk 0:00:18.1]} 53... Bb1+ {[%clk 0:00:03.4]} 54. Ka3
{[%clk 0:00:18.1]} 54... Bd3 {[%clk 0:00:04.1]} 55. Rd2 {[%clk 0:00:16.3]} 55...
Bh7 {[%clk 0:00:03.9]} 56. Re3 {[%clk 0:00:14.6]} 56... Rg3 {[%clk 0:00:04.3]}
57. Rd4+ {[%clk 0:00:13.5]} 57... Kh3 {[%clk 0:00:04.3]} 58. Rxg3+ {[%clk
0:00:11.3]} 58... Kxg3 {[%clk 0:00:05.2]} 59. Rd6 {[%clk 0:00:11.9]} 59... Re8
{[%clk 0:00:05.3]} 60. Nd5 {[%clk 0:00:10.9]} 60... h5 {[%clk 0:00:05]} 61. Nf6
{[%clk 0:00:11.6]} 61... Re7 {[%clk 0:00:03.7]} 62. Nxh5+ {[%clk 0:00:12.3]}
62... Kf3 {[%clk 0:00:04]} 63. Nf6 {[%clk 0:00:13.2]} 63... a5 {[%clk
0:00:03.4]} 64. Ka4 {[%clk 0:00:13.1]} 64... Bc2 {[%clk 0:00:03.3]} 65. Rc6
{[%clk 0:00:13.3]} 65... Bxb3+ {[%clk 0:00:03.7]} 66. Kxb3 {[%clk 0:00:13.5]}
66... Kg2 {[%clk 0:00:04]} 67. Nd5 {[%clk 0:00:13.6]} 67... a4+ {[%clk
0:00:04.3]} 68. Kc4 {[%clk 0:00:13.3]} 68... Re4+ {[%clk 0:00:04.9]} 69. Kd3
{[%clk 0:00:13.8]} 69... Re5 {[%clk 0:00:04.6]} 70. Kd4 {[%clk 0:00:13.9]} 70...
Re1 {[%clk 0:00:04.9]} 71. Ra6 {[%clk 0:00:13.1]} 71... Rd1+ {[%clk 0:00:04.4]}
72. Ke4 {[%clk 0:00:13.7]} 72... Re1+ {[%clk 0:00:04.6]} 73. Kf5 {[%clk
0:00:13.1]} 73... Ra1 {[%clk 0:00:03.8]} 74. Kg4 {[%clk 0:00:12.8]} 74... a3
{[%clk 0:00:04.1]} 75. Rc6 {[%clk 0:00:11.3]} 75... Re1 {[%clk 0:00:02.3]} 76.
Rc2+ {[%clk 0:00:11.6]} 76... Kg1 {[%clk 0:00:02.5]} 77. Ra2 {[%clk 0:00:11.9]}
77... Rf1 {[%clk 0:00:02]} 78. Rxa3 {[%clk 0:00:11.6]} 78... Kf2 {[%clk
0:00:01.5]} 79. Ra2+ {[%clk 0:00:10.8]} 79... Kg1 {[%clk 0:00:01.9]} 80. Nf4
{[%clk 0:00:11.3]} 80... Rc1 {[%clk 0:00:02.2]} 81. Ne2+ {[%clk 0:00:11]} 1-0

[Event "Early-Titled-Tuesday-Blitz-September-05-2023"]
[Site "Chess.com"]
[Date "2023.09.05"]
[Round "7"]
[White "blitzo_vich"]
[Black "Kirill_Klukin"]
[Result "0-1"]
[WhiteElo "2617"]
[BlackElo "2800"]
[TimeControl "180+1"]
[EndTime "9:18:33 PDT"]
[Termination "Kirill_Klukin won by resignation"]

1. c4 {[%clk 0:03:00.9]} 1... c5 {[%clk 0:02:58.5]} 2. Nf3 {[%clk 0:03:00.1]}
2... g6 {[%clk 0:02:58.7]} 3. Nc3 {[%clk 0:02:58.1]} 3... Bg7 {[%clk 0:02:58.8]}
4. e3 {[%clk 0:02:58.6]} 4... Nf6 {[%clk 0:02:57.1]} 5. d4 {[%clk 0:02:58.4]}
5... cxd4 {[%clk 0:02:57.4]} 6. exd4 {[%clk 0:02:58.6]} 6... d5 {[%clk
0:02:57.8]} 7. cxd5 {[%clk 0:02:55.2]} 7... O-O {[%clk 0:02:51.4]} 8. Qb3 {[%clk
0:02:50.6]} 8... Nbd7 {[%clk 0:02:51]} 9. Be2 {[%clk 0:02:47.7]} 9... Nb6 {[%clk
0:02:50.9]} 10. O-O {[%clk 0:02:47.9]} 10... Nfxd5 {[%clk 0:02:43.6]} 11. Rd1
{[%clk 0:02:40.4]} 11... Be6 {[%clk 0:02:43]} 12. Qa3 {[%clk 0:02:31.4]} 12...
Rc8 {[%clk 0:02:31.2]} 13. Bg5 {[%clk 0:02:11.9]} 13... h6 {[%clk 0:02:29.3]}
14. Bh4 {[%clk 0:02:07]} 14... g5 {[%clk 0:01:42.7]} 15. Bg3 {[%clk 0:02:03.2]}
15... a6 {[%clk 0:01:41.2]} 16. Rac1 {[%clk 0:01:56.2]} 16... Nc4 {[%clk
0:01:31.3]} 17. Bxc4 {[%clk 0:01:54.1]} 17... Rxc4 {[%clk 0:01:31.3]} 18. Ne4
{[%clk 0:01:41.9]} 18... Nb6 {[%clk 0:00:58.6]} 19. b3 {[%clk 0:01:27.1]} 19...
Rxc1 {[%clk 0:00:56.6]} 20. Rxc1 {[%clk 0:01:27.7]} 20... Bd5 {[%clk 0:00:56.6]}
21. Bc7 {[%clk 0:00:50.1]} 21... Qd7 {[%clk 0:00:34.6]} 22. Bxb6 {[%clk
0:00:44.9]} 22... Bxe4 {[%clk 0:00:33.3]} 23. Nd2 {[%clk 0:00:34.3]} 23... Bc6
{[%clk 0:00:30.9]} 24. Re1 {[%clk 0:00:27.1]} 24... e6 {[%clk 0:00:28.8]} 25.
Qb4 {[%clk 0:00:19.7]} 25... Qd5 {[%clk 0:00:28.3]} 26. f3 {[%clk 0:00:17.3]}
26... Rc8 {[%clk 0:00:26.2]} 27. Ne4 {[%clk 0:00:16.4]} 27... Qb5 {[%clk
0:00:17.4]} 28. Qxb5 {[%clk 0:00:14.7]} 28... Bxb5 {[%clk 0:00:17.8]} 29. Bc5
{[%clk 0:00:14.4]} 29... Rd8 {[%clk 0:00:15]} 30. Kf2 {[%clk 0:00:11.8]} 30...
Bxd4+ {[%clk 0:00:13.9]} 31. Bxd4 {[%clk 0:00:11.9]} 31... Rxd4 {[%clk
0:00:14.8]} 32. Rc1 {[%clk 0:00:11.7]} 32... Bc6 {[%clk 0:00:15]} 33. Ke3 {[%clk
0:00:10.4]} 33... Rd8 {[%clk 0:00:13.1]} 34. Nc5 {[%clk 0:00:11]} 34... Bd5
{[%clk 0:00:11.6]} 35. Nd3 {[%clk 0:00:10.2]} 35... Bc6 {[%clk 0:00:09.3]} 36.
Nb4 {[%clk 0:00:09.3]} 36... Rd6 {[%clk 0:00:07.2]} 37. Nxc6 {[%clk 0:00:07.6]}
37... bxc6 {[%clk 0:00:06.1]} 38. b4 {[%clk 0:00:06.9]} 38... Kf8 {[%clk
0:00:06]} 39. Rc5 {[%clk 0:00:06.9]} 39... Rd5 {[%clk 0:00:03.3]} 40. Rxc6
{[%clk 0:00:06.7]} 40... a5 {[%clk 0:00:04]} 41. a3 {[%clk 0:00:06.4]} 41...
axb4 {[%clk 0:00:03.9]} 42. axb4 {[%clk 0:00:07.3]} 42... Rd1 {[%clk 0:00:04.7]}
43. b5 {[%clk 0:00:06.7]} 43... Rb1 {[%clk 0:00:05.4]} 44. b6 {[%clk 0:00:06.7]}
44... Kg7 {[%clk 0:00:06.1]} 45. Kd4 {[%clk 0:00:05.9]} 45... Rb2 {[%clk
0:00:05.8]} 46. Kc5 {[%clk 0:00:05.4]} 46... Rxg2 {[%clk 0:00:05.5]} 47. b7
{[%clk 0:00:05.2]} 47... Rc2+ {[%clk 0:00:06.1]} 48. Kd6 {[%clk 0:00:03.6]}
48... Rb2 {[%clk 0:00:06.6]} 49. Kc7 {[%clk 0:00:03.5]} 49... Rxb7+ {[%clk
0:00:04.9]} 50. Kxb7 {[%clk 0:00:03.4]} 50... Kf6 {[%clk 0:00:05.8]} 51. Kb6
{[%clk 0:00:02.4]} 51... Kf5 {[%clk 0:00:06.2]} 52. Kc5 {[%clk 0:00:02.8]} 52...
Kf4 {[%clk 0:00:06.6]} 53. Kd4 {[%clk 0:00:02.3]} 53... f5 {[%clk 0:00:03.5]}
54. Rc3 {[%clk 0:00:02.5]} 54... e5+ {[%clk 0:00:03.7]} 55. Kd5 {[%clk
0:00:02.9]} 55... h5 {[%clk 0:00:03.3]} 56. h3 {[%clk 0:00:02.5]} 56... h4
{[%clk 0:00:03.6]} 57. Rd3 {[%clk 0:00:02.9]} 57... Kg3 {[%clk 0:00:02.1]} 58.
Kxe5 {[%clk 0:00:02.5]} 58... f4 {[%clk 0:00:02.9]} 59. Kf5 {[%clk 0:00:02.8]}
59... Kxh3 {[%clk 0:00:03.7]} 60. Kxg5 {[%clk 0:00:03.1]} 60... Kg3 {[%clk
0:00:04.5]} 61. Rd1 {[%clk 0:00:03]} 61... h3 {[%clk 0:00:05]} 62. Rg1+ {[%clk
0:00:02.8]} 62... Kxf3 {[%clk 0:00:05.4]} 63. Kh4 {[%clk 0:00:03]} 63... h2
{[%clk 0:00:05.8]} 64. Ra1 {[%clk 0:00:02.5]} 64... Kg2 {[%clk 0:00:06]} 65.
Ra2+ {[%clk 0:00:01.7]} 65... Kg1 {[%clk 0:00:05.5]} 66. Kg4 {[%clk 0:00:01.9]}
66... f3 {[%clk 0:00:02.5]} 67. Ra1+ {[%clk 0:00:02.3]} 67... Kg2 {[%clk
0:00:02.4]} 68. Ra2+ {[%clk 0:00:02.2]} 68... f2 {[%clk 0:00:02.7]} 69. Ra1
{[%clk 0:00:02.8]} 69... h1=Q {[%clk 0:00:02.6]} 70. Rxh1 {[%clk 0:00:03]} 70...
Kxh1 {[%clk 0:00:03.5]} 71. Kg5 {[%clk 0:00:03.7]} 71... f1=Q {[%clk 0:00:04]}
0-1

[Event "Early-Titled-Tuesday-Blitz-September-05-2023"]
[Site "Chess.com"]
[Date "2023.09.05"]
[Round "8"]
[White "wannabe2700"]
[Black "ArmanGhevondyanchess"]
[Result "0-1"]
[WhiteElo "2619"]
[BlackElo "2498"]
[TimeControl "180+1"]
[EndTime "9:22:35 PDT"]
[Termination "ArmanGhevondyanchess won by resignation"]

1. f4 {[%clk 0:03:00.9]} 1... Nf6 {[%clk 0:02:58.8]} 2. Nf3 {[%clk 0:03:00.9]}
2... g6 {[%clk 0:02:59.4]} 3. b3 {[%clk 0:03:00.4]} 3... Bg7 {[%clk 0:02:59.8]}
4. Bb2 {[%clk 0:03:00.9]} 4... O-O {[%clk 0:03:00.2]} 5. g3 {[%clk 0:03:01.2]}
5... d5 {[%clk 0:02:59.4]} 6. Bg2 {[%clk 0:03:01.2]} 6... c5 {[%clk 0:02:59.9]}
7. O-O {[%clk 0:03:00.8]} 7... Nc6 {[%clk 0:02:59.4]} 8. e3 {[%clk 0:02:58.2]}
8... b6 {[%clk 0:02:59.5]} 9. a4 {[%clk 0:02:47.7]} 9... Bb7 {[%clk 0:02:59.6]}
10. Na3 {[%clk 0:02:47.8]} 10... Rc8 {[%clk 0:02:56.1]} 11. Qe2 {[%clk
0:02:47.9]} 11... d4 {[%clk 0:02:53.3]} 12. e4 {[%clk 0:02:33.6]} 12... Ng4
{[%clk 0:02:38.9]} 13. d3 {[%clk 0:02:24.3]} 13... Ne3 {[%clk 0:02:38.5]} 14.
Rf2 {[%clk 0:02:22.2]} 14... e5 {[%clk 0:02:36.5]} 15. Bh3 {[%clk 0:02:17.5]}
15... f5 {[%clk 0:02:29.9]} 16. fxe5 {[%clk 0:02:12.5]} 16... Nxe5 {[%clk
0:02:28.3]} 17. Nxe5 {[%clk 0:02:12.5]} 17... Bxe5 {[%clk 0:02:28.8]} 18. Nc4
{[%clk 0:02:07.7]} 18... Bg7 {[%clk 0:02:27.5]} 19. exf5 {[%clk 0:02:05.8]}
19... Qd5 {[%clk 0:02:18.2]} 20. Bg2 {[%clk 0:01:54.5]} 20... Nxg2 {[%clk
0:02:18.4]} 21. Rxg2 {[%clk 0:01:51.8]} 21... Rce8 {[%clk 0:02:17.3]} 0-1

[Event "Early-Titled-Tuesday-Blitz-September-05-2023"]
[Site "Chess.com"]
[Date "2023.09.05"]
[Round "8"]
[White "Speshka"]
[Black "MasterKroket"]
[Result "1-0"]
[WhiteElo "2528"]
[BlackElo "2402"]
[TimeControl "180+1"]
[EndTime "9:22:35 PDT"]
[Termination "Speshka won by resignation"]

1. e4 {[%clk 0:03:00.9]} 1... e5 {[%clk 0:02:59.1]} 2. Nf3 {[%clk 0:03:00.5]}
2... Nc6 {[%clk 0:02:59.5]} 3. Bb5 {[%clk 0:03:00.1]} 3... a6 {[%clk 0:02:59.1]}
4. Ba4 {[%clk 0:03:00.1]} 4... Nf6 {[%clk 0:02:59.4]} 5. O-O {[%clk 0:02:59.8]}
5... Be7 {[%clk 0:02:59.8]} 6. Re1 {[%clk 0:02:58.2]} 6... b5 {[%clk 0:02:59.9]}
7. Bb3 {[%clk 0:02:57.8]} 7... O-O {[%clk 0:03:00]} 8. a4 {[%clk 0:02:58.1]}
8... b4 {[%clk 0:02:59.4]} 9. d4 {[%clk 0:02:57.7]} 9... d6 {[%clk 0:02:58.2]}
10. dxe5 {[%clk 0:02:57.9]} 10... dxe5 {[%clk 0:02:54.9]} 11. Qe2 {[%clk
0:02:57.4]} 11... Bg4 {[%clk 0:02:52.4]} 12. c3 {[%clk 0:02:56.3]} 12... bxc3
{[%clk 0:02:50.5]} 13. bxc3 {[%clk 0:02:57.2]} 13... Qb8 {[%clk 0:02:38.2]} 14.
Nbd2 {[%clk 0:02:55.2]} 14... Bc5 {[%clk 0:02:32.3]} 15. Bd5 {[%clk 0:02:44.8]}
15... Nxd5 {[%clk 0:01:59.4]} 16. exd5 {[%clk 0:02:45.7]} 16... Na5 {[%clk
0:01:55.9]} 17. Rb1 {[%clk 0:02:40.5]} 17... Qa7 {[%clk 0:01:55.3]} 18. Ne4
{[%clk 0:02:38.5]} 18... f6 {[%clk 0:01:48.6]} 19. h3 {[%clk 0:02:36.7]} 19...
Bd7 {[%clk 0:01:46.9]} 20. Nxc5 {[%clk 0:02:19.8]} 20... Qxc5 {[%clk 0:01:46.7]}
21. Be3 {[%clk 0:02:19.8]} 21... Qc4 {[%clk 0:01:44.3]} 22. Qxc4 {[%clk
0:02:13.4]} 22... Nxc4 {[%clk 0:01:45.2]} 23. Rb7 {[%clk 0:02:10.9]} 23... Bxa4
{[%clk 0:01:44.7]} 24. Rxc7 {[%clk 0:02:10.4]} 24... Rfd8 {[%clk 0:01:44.8]} 25.
Rxc4 {[%clk 0:02:09.3]} 1-0

[Event "Early-Titled-Tuesday-Blitz-September-05-2023"]
[Site "Chess.com"]
[Date "2023.09.05"]
[Round "8"]
[White "TC2304"]
[Black "knightinshiningarmour16"]
[Result "1-0"]
[WhiteElo "2336"]
[BlackElo "2111"]
[TimeControl "180+1"]
[EndTime "9:22:36 PDT"]
[Termination "TC2304 won by resignation"]

1. c4 {[%clk 0:03:00.9]} 1... e6 {[%clk 0:02:59.4]} 2. g3 {[%clk 0:02:59.8]}
2... d5 {[%clk 0:03:00.3]} 3. Bg2 {[%clk 0:03:00.3]} 3... c6 {[%clk 0:03:00.1]}
4. Nf3 {[%clk 0:03:00.9]} 4... Nf6 {[%clk 0:02:59.5]} 5. b3 {[%clk 0:03:01.5]}
5... Bd6 {[%clk 0:02:58.2]} 6. Bb2 {[%clk 0:03:02]} 6... Nbd7 {[%clk 0:02:58.4]}
7. O-O {[%clk 0:03:02.7]} 7... O-O {[%clk 0:02:58.7]} 8. d4 {[%clk 0:03:01.2]}
8... Qe7 {[%clk 0:02:58.3]} 9. Nbd2 {[%clk 0:02:58.6]} 9... Ba3 {[%clk
0:02:54.8]} 10. Bc3 {[%clk 0:02:57.1]} 10... Bb4 {[%clk 0:02:54.6]} 11. Bb2
{[%clk 0:02:52.8]} 11... Ba3 {[%clk 0:02:53.7]} 12. Bc3 {[%clk 0:02:50.1]} 12...
Bb4 {[%clk 0:02:53.5]} 13. Qc2 {[%clk 0:02:50.8]} 13... Bxc3 {[%clk 0:02:48.7]}
14. Qxc3 {[%clk 0:02:51.7]} 14... Ne4 {[%clk 0:02:41.9]} 15. Nxe4 {[%clk
0:02:51.3]} 15... dxe4 {[%clk 0:02:42.8]} 16. Ne5 {[%clk 0:02:51.8]} 16... f5
{[%clk 0:02:36.5]} 17. Rfd1 {[%clk 0:02:44.6]} 17... Nxe5 {[%clk 0:02:27.3]} 18.
dxe5 {[%clk 0:02:44.6]} 18... c5 {[%clk 0:02:24.9]} 19. Rd6 {[%clk 0:02:43.2]}
19... Bd7 {[%clk 0:02:22.8]} 20. Rad1 {[%clk 0:02:43.1]} 20... Bc6 {[%clk
0:02:22.7]} 21. e3 {[%clk 0:02:39.4]} 21... Rac8 {[%clk 0:02:16]} 22. a3 {[%clk
0:02:36.6]} 22... Rfd8 {[%clk 0:02:12.6]} 23. b4 {[%clk 0:02:36.5]} 23... b6
{[%clk 0:02:03.9]} 24. bxc5 {[%clk 0:02:31.9]} 24... bxc5 {[%clk 0:02:03.7]} 25.
Qa5 {[%clk 0:02:32.4]} 25... Ba8 {[%clk 0:02:02.3]} 26. Rxd8+ {[%clk 0:02:29.8]}
26... Rxd8 {[%clk 0:02:00.3]} 27. Qxd8+ {[%clk 0:02:23.7]} 27... Qxd8 {[%clk
0:01:39.9]} 28. Rxd8+ {[%clk 0:02:21.6]} 1-0

[Event "Early-Titled-Tuesday-Blitz-September-05-2023"]
[Site "Chess.com"]
[Date "2023.09.05"]
[Round "8"]
[White "Duhless"]
[Black "lamomiajunior"]
[Result "1-0"]
[WhiteElo "2996"]
[BlackElo "2693"]
[TimeControl "180+1"]
[EndTime "9:22:40 PDT"]
[Termination "Duhless won by resignation"]

1. g4 {[%clk 0:03:00]} 1... d5 {[%clk 0:02:59.5]} 2. Bg2 {[%clk 0:03:00]} 2...
c6 {[%clk 0:02:59.3]} 3. e3 {[%clk 0:02:55.8]} 3... e5 {[%clk 0:02:51.3]} 4. d4
{[%clk 0:02:52.8]} 4... e4 {[%clk 0:02:48.9]} 5. c4 {[%clk 0:02:52.6]} 5... Bb4+
{[%clk 0:02:38.8]} 6. Nc3 {[%clk 0:02:50.5]} 6... Ne7 {[%clk 0:02:39]} 7. Qb3
{[%clk 0:02:47]} 7... Bd6 {[%clk 0:02:36.4]} 8. Bd2 {[%clk 0:02:40.9]} 8... Be6
{[%clk 0:02:26.7]} 9. Qxb7 {[%clk 0:02:33.4]} 9... Nd7 {[%clk 0:01:46.3]} 10.
cxd5 {[%clk 0:02:32.1]} 10... c5 {[%clk 0:01:00.8]} 11. dxe6 {[%clk 0:02:29.5]}
11... fxe6 {[%clk 0:00:59.4]} 12. Nxe4 {[%clk 0:02:27.6]} 12... Bc7 {[%clk
0:00:53.1]} 13. Qxa8 {[%clk 0:02:24.7]} 1-0

[Event "Early-Titled-Tuesday-Blitz-September-05-2023"]
[Site "Chess.com"]
[Date "2023.09.05"]
[Round "8"]
[White "CheckThis4"]
[Black "TimofeevAr"]
[Result "1/2-1/2"]
[WhiteElo "2670"]
[BlackElo "2849"]
[TimeControl "180+1"]
[EndTime "9:22:43 PDT"]
[Termination "Game drawn by agreement"]

1. d4 {[%clk 0:02:44.6]} 1... e6 {[%clk 0:02:59.7]} 2. e4 {[%clk 0:02:44.2]}
2... d5 {[%clk 0:02:59.6]} 3. Nd2 {[%clk 0:02:42.9]} 3... c5 {[%clk 0:02:58.5]}
4. Ngf3 {[%clk 0:02:42.2]} 4... Nc6 {[%clk 0:02:57.1]} 5. exd5 {[%clk
0:02:40.7]} 5... exd5 {[%clk 0:02:57.2]} 6. Bb5 {[%clk 0:02:39.6]} 6... Bd6
{[%clk 0:02:56.8]} 7. O-O {[%clk 0:02:38.8]} 7... Ne7 {[%clk 0:02:56.5]} 8. dxc5
{[%clk 0:02:38.2]} 8... Bxc5 {[%clk 0:02:56.9]} 9. Nb3 {[%clk 0:02:38.2]} 9...
Bb6 {[%clk 0:02:56.3]} 10. Re1 {[%clk 0:02:36.7]} 10... O-O {[%clk 0:02:55.9]}
11. Be3 {[%clk 0:02:36.4]} 11... h6 {[%clk 0:02:39.1]} 12. Bxb6 {[%clk
0:02:30.5]} 12... Qxb6 {[%clk 0:02:39.1]} 13. Bf1 {[%clk 0:02:25.9]} 13... Bg4
{[%clk 0:02:37.1]} 14. h3 {[%clk 0:02:25.3]} 14... Bxf3 {[%clk 0:02:36.6]} 15.
Qxf3 {[%clk 0:02:24.2]} 15... a5 {[%clk 0:02:35]} 16. a4 {[%clk 0:02:10.5]}
16... Rfe8 {[%clk 0:02:29.1]} 17. Bb5 {[%clk 0:02:09.6]} 17... Red8 {[%clk
0:02:19.7]} 18. Rad1 {[%clk 0:02:05.1]} 18... Qc7 {[%clk 0:02:17.1]} 19. c3
{[%clk 0:02:01.8]} 19... Rd6 {[%clk 0:01:54]} 20. Qg3 {[%clk 0:01:50.3]} 20...
Rad8 {[%clk 0:01:46.5]} 21. Nd4 {[%clk 0:01:48.2]} 1/2-1/2

[Event "Early-Titled-Tuesday-Blitz-September-05-2023"]
[Site "Chess.com"]
[Date "2023.09.05"]
[Round "8"]
[White "wqws"]
[Black "ural58"]
[Result "1-0"]
[WhiteElo "2640"]
[BlackElo "2517"]
[TimeControl "180+1"]
[EndTime "9:22:54 PDT"]
[Termination "wqws won by resignation"]

1. e4 {[%clk 0:03:00.9]} 1... d5 {[%clk 0:02:59.3]} 2. exd5 {[%clk 0:03:01.1]}
2... Qxd5 {[%clk 0:02:59.2]} 3. Nc3 {[%clk 0:03:01.4]} 3... Qd6 {[%clk
0:02:59.3]} 4. d4 {[%clk 0:03:01.6]} 4... c6 {[%clk 0:02:59.1]} 5. Nf3 {[%clk
0:03:01.8]} 5... Bf5 {[%clk 0:02:59.1]} 6. Bc4 {[%clk 0:03:01.1]} 6... e6 {[%clk
0:02:57.8]} 7. O-O {[%clk 0:02:55.9]} 7... Nd7 {[%clk 0:02:54.9]} 8. Qe2 {[%clk
0:02:55.3]} 8... h5 {[%clk 0:02:49]} 9. Ne4 {[%clk 0:02:53.6]} 9... Qc7 {[%clk
0:02:48.2]} 10. Re1 {[%clk 0:02:48.4]} 10... h4 {[%clk 0:02:40.9]} 11. Neg5
{[%clk 0:02:44.2]} 11... Be7 {[%clk 0:02:24.4]} 12. c3 {[%clk 0:02:38.2]} 12...
Ngf6 {[%clk 0:02:17.4]} 13. h3 {[%clk 0:02:28.3]} 13... Nd5 {[%clk 0:02:16.2]}
14. Bd3 {[%clk 0:02:25.3]} 14... g6 {[%clk 0:02:07.3]} 15. Bxf5 {[%clk
0:02:22.3]} 15... gxf5 {[%clk 0:02:05.5]} 16. Nxf7 {[%clk 0:02:17.4]} 16... Kxf7
{[%clk 0:02:04.3]} 17. Qxe6+ {[%clk 0:02:17.8]} 17... Ke8 {[%clk 0:02:02.6]} 18.
c4 {[%clk 0:02:15.5]} 18... Nf8 {[%clk 0:02:01]} 19. Qxf5 {[%clk 0:02:15.4]}
19... Qd7 {[%clk 0:01:23]} 20. Qxd7+ {[%clk 0:02:12.8]} 20... Nxd7 {[%clk
0:01:23.1]} 21. cxd5 {[%clk 0:02:12.8]} 21... cxd5 {[%clk 0:01:23.4]} 22. Bg5
{[%clk 0:02:11.8]} 22... Rh7 {[%clk 0:01:21.6]} 23. Bxh4 {[%clk 0:02:12.2]} 1-0

[Event "Early-Titled-Tuesday-Blitz-September-05-2023"]
[Site "Chess.com"]
[Date "2023.09.05"]
[Round "8"]
[White "unclear15"]
[Black "Actuary44"]
[Result "1-0"]
[WhiteElo "2427"]
[BlackElo "2514"]
[TimeControl "180+1"]
[EndTime "9:22:56 PDT"]
[Termination "unclear15 won by resignation"]

1. e4 {[%clk 0:02:55.5]} 1... b6 {[%clk 0:02:59.7]} 2. Nf3 {[%clk 0:02:54.5]}
2... Bb7 {[%clk 0:03:00.1]} 3. Nc3 {[%clk 0:02:54]} 3... e6 {[%clk 0:03:00.7]}
4. d4 {[%clk 0:02:53.4]} 4... Nf6 {[%clk 0:03:01.2]} 5. Bd3 {[%clk 0:02:53.1]}
5... d5 {[%clk 0:03:01.3]} 6. e5 {[%clk 0:02:52.4]} 6... Nfd7 {[%clk 0:03:01.6]}
7. O-O {[%clk 0:02:52.1]} 7... c5 {[%clk 0:03:01.9]} 8. Bg5 {[%clk 0:02:49.2]}
8... Qc8 {[%clk 0:02:57.4]} 9. Re1 {[%clk 0:02:47.2]} 9... Nc6 {[%clk
0:02:56.7]} 10. Nxd5 {[%clk 0:02:35.9]} 10... exd5 {[%clk 0:02:52.9]} 11. e6
{[%clk 0:02:35.2]} 11... fxe6 {[%clk 0:02:51.5]} 12. Rxe6+ {[%clk 0:02:36.1]}
12... Be7 {[%clk 0:02:48.3]} 13. Qe2 {[%clk 0:02:34]} 13... Nf6 {[%clk
0:02:43.8]} 14. Bxf6 {[%clk 0:02:14.7]} 14... gxf6 {[%clk 0:02:44.7]} 15. Re1
{[%clk 0:02:10.5]} 15... c4 {[%clk 0:02:00.9]} 16. Rxc6 {[%clk 0:01:39.6]} 16...
Qd7 {[%clk 0:01:59.7]} 17. Bf5 {[%clk 0:01:36.9]} 17... Qd8 {[%clk 0:01:48.4]}
18. Re6 {[%clk 0:01:30.7]} 1-0